[Event "*** Titled Tuesday Blitz"]
[Site "Chess.com"]
[Date "2018.09.04"]
[Round "4"]
[White "Saitama_Hero"]
[Black "Karina_Oparina"]
[Result "1-0"]
[WhiteElo "2196"]
[BlackElo "2176"]
[TimeControl "180+2"]
[EndTime "14:25:41 PDT"]
[Termination "Saitama_Hero won by resignation"]

1. e4 {[%clk 0:03:01.9]} 1... e5 {[%clk 0:02:47.3]} 2. Nf3 {[%clk 0:03:01]} 2...
d6 {[%clk 0:02:46.3]} 3. d4 {[%clk 0:03:01.8]} 3... Nf6 {[%clk 0:02:44.5]} 4.
Nc3 {[%clk 0:03:00.9]} 4... Nbd7 {[%clk 0:02:44.5]} 5. Bc4 {[%clk 0:03:00.5]}
5... Be7 {[%clk 0:02:45.2]} 6. O-O {[%clk 0:03:01.4]} 6... O-O {[%clk
0:02:42.7]} 7. Re1 {[%clk 0:03:02.4]} 7... c6 {[%clk 0:02:43.4]} 8. a4 {[%clk
0:03:02.1]} 8... b6 {[%clk 0:02:42.7]} 9. h3 {[%clk 0:02:53.4]} 9... a6 {[%clk
0:02:42.9]} 10. dxe5 {[%clk 0:02:50.9]} 10... dxe5 {[%clk 0:02:40.4]} 11. Nh4
{[%clk 0:02:49.2]} 11... Bb7 {[%clk 0:02:29]} 12. Nf5 {[%clk 0:02:45.5]} 12...
b5 {[%clk 0:02:29.9]} 13. Bb3 {[%clk 0:02:44.5]} 13... Nc5 {[%clk 0:02:27.8]}
14. Qf3 {[%clk 0:02:40.3]} 14... b4 {[%clk 0:02:21.5]} 15. Nd1 {[%clk
0:02:31.2]} 15... Nxb3 {[%clk 0:02:21.3]} 16. cxb3 {[%clk 0:02:33.1]} 16... c5
{[%clk 0:02:13.7]} 17. Qg3 {[%clk 0:02:33]} 17... Ne8 {[%clk 0:02:12]} 18. f3
{[%clk 0:02:10.1]} 18... Bf6 {[%clk 0:02:07.6]} 19. Nde3 {[%clk 0:02:11.3]}
19... Kh8 {[%clk 0:02:02.2]} 20. Ng4 {[%clk 0:02:07.4]} 20... g6 {[%clk
0:01:33.9]} 21. Bh6 {[%clk 0:01:35.9]} 21... Rg8 {[%clk 0:01:12.4]} 22. Rad1
{[%clk 0:01:32.9]} 22... gxf5 {[%clk 0:01:00]} 23. Rxd8 {[%clk 0:01:33.9]} 23...
Rxd8 {[%clk 0:00:58.7]} 24. exf5 {[%clk 0:01:34.9]} 24... Rd3 {[%clk 0:00:43.5]}
25. Qf2 {[%clk 0:01:16.8]} 25... Rxb3 {[%clk 0:00:41.9]} 26. Nxf6 {[%clk
0:01:12.1]} 26... Nxf6 {[%clk 0:00:35.6]} 27. Qxc5 {[%clk 0:01:04.1]} 27... Rxb2
{[%clk 0:00:18.2]} 28. g4 {[%clk 0:01:05]} 28... Bxf3 {[%clk 0:00:16.4]} 29.
Qxe5 {[%clk 0:01:05.1]} 29... Rg2+ {[%clk 0:00:17.2]} 30. Kf1 {[%clk 0:01:05.7]}
1-0

[Event "*** Titled Tuesday Blitz"]
[Site "Chess.com"]
[Date "2018.09.04"]
[Round "4"]
[White "Divertissement"]
[Black "Kriari"]
[Result "0-1"]
[WhiteElo "2538"]
[BlackElo "2822"]
[TimeControl "180+2"]
[EndTime "14:25:59 PDT"]
[Termination "Kriari won by resignation"]

1. d4 {[%clk 0:03:01.9]} 1... Nf6 {[%clk 0:03:00.7]} 2. Nf3 {[%clk 0:03:02]}
2... d6 {[%clk 0:02:59.8]} 3. c4 {[%clk 0:02:59.7]} 3... g6 {[%clk 0:03:00.9]}
4. g3 {[%clk 0:03:00.7]} 4... Bg7 {[%clk 0:03:01.5]} 5. Bg2 {[%clk 0:03:02.2]}
5... O-O {[%clk 0:03:03.4]} 6. O-O {[%clk 0:03:03.7]} 6... Nc6 {[%clk 0:03:05]}
7. Nc3 {[%clk 0:03:04.7]} 7... e5 {[%clk 0:03:06.6]} 8. d5 {[%clk 0:03:03.3]}
8... Nb8 {[%clk 0:03:07.2]} 9. e4 {[%clk 0:03:04.8]} 9... a5 {[%clk 0:03:08.4]}
10. Ne1 {[%clk 0:03:06.2]} 10... Nfd7 {[%clk 0:03:08.4]} 11. Nd3 {[%clk
0:03:06.2]} 11... Na6 {[%clk 0:03:10]} 12. Be3 {[%clk 0:02:54.3]} 12... f5
{[%clk 0:03:09]} 13. f4 {[%clk 0:02:46]} 13... exf4 {[%clk 0:03:09.6]} 14. Nxf4
{[%clk 0:02:38.4]} 14... Ndc5 {[%clk 0:03:07.2]} 15. Bd4 {[%clk 0:02:26.8]}
15... Qe7 {[%clk 0:02:25.6]} 16. Bxg7 {[%clk 0:02:09]} 16... Qxg7 {[%clk
0:02:27.5]} 17. Qd2 {[%clk 0:02:10.4]} 17... Bd7 {[%clk 0:02:08.2]} 18. Rae1
{[%clk 0:02:03.6]} 18... Rae8 {[%clk 0:02:06.7]} 19. exf5 {[%clk 0:01:24.1]}
19... Bxf5 {[%clk 0:02:08.6]} 20. Ne6 {[%clk 0:01:15.3]} 20... Nxe6 {[%clk
0:01:51.8]} 21. dxe6 {[%clk 0:01:14.6]} 21... Nc5 {[%clk 0:01:50]} 22. Nd5
{[%clk 0:01:03.8]} 22... Bxe6 {[%clk 0:01:47.7]} 23. Qxa5 {[%clk 0:00:58.5]}
23... Qd4+ {[%clk 0:01:39.5]} 24. Kh1 {[%clk 0:00:59.5]} 24... Nd3 {[%clk
0:01:33.9]} 25. Qxc7 {[%clk 0:00:35.7]} 25... Nf2+ {[%clk 0:01:18.4]} 26. Rxf2
{[%clk 0:00:35.5]} 26... Qxf2 {[%clk 0:01:20.3]} 27. Rf1 {[%clk 0:00:24.3]}
27... Bh3 {[%clk 0:00:39.4]} 28. Ne7+ {[%clk 0:00:08.5]} 28... Rxe7 {[%clk
0:00:39.8]} 29. Bd5+ {[%clk 0:00:06]} 29... Kh8 {[%clk 0:00:37.4]} 0-1

[Event "*** Titled Tuesday Blitz"]
[Site "Chess.com"]
[Date "2018.09.04"]
[Round "4"]
[White "jk13"]
[Black "Alexander_Moskalenko"]
[Result "0-1"]
[WhiteElo "2538"]
[BlackElo "2813"]
[TimeControl "180+2"]
[EndTime "14:26:04 PDT"]
[Termination "Alexander_Moskalenko won by resignation"]

1. e4 {[%clk 0:03:01.9]} 1... d6 {[%clk 0:02:59.8]} 2. d4 {[%clk 0:03:02.8]}
2... Nf6 {[%clk 0:02:59.2]} 3. Nc3 {[%clk 0:03:04.7]} 3... g6 {[%clk 0:02:59.9]}
4. Nf3 {[%clk 0:03:05.9]} 4... Bg7 {[%clk 0:03:00.5]} 5. Be3 {[%clk 0:03:07.3]}
5... c6 {[%clk 0:02:58.1]} 6. a4 {[%clk 0:03:08.1]} 6... O-O {[%clk 0:02:57.7]}
7. Be2 {[%clk 0:03:09.4]} 7... Nbd7 {[%clk 0:02:54.7]} 8. h3 {[%clk 0:03:10.5]}
8... Qc7 {[%clk 0:02:55.3]} 9. O-O {[%clk 0:03:11.1]} 9... b6 {[%clk 0:02:56]}
10. Qc1 {[%clk 0:03:07.8]} 10... Bb7 {[%clk 0:02:52.5]} 11. Bh6 {[%clk
0:03:08.6]} 11... e5 {[%clk 0:02:51.1]} 12. dxe5 {[%clk 0:03:09.3]} 12... Nxe5
{[%clk 0:02:49.9]} 13. Nxe5 {[%clk 0:03:09.6]} 13... dxe5 {[%clk 0:02:51.8]} 14.
Bxg7 {[%clk 0:03:10.6]} 14... Kxg7 {[%clk 0:02:51.2]} 15. Qe3 {[%clk 0:03:07.5]}
15... a6 {[%clk 0:02:47.6]} 16. Rfd1 {[%clk 0:03:00.1]} 16... Rfe8 {[%clk
0:02:47.8]} 17. Rd2 {[%clk 0:02:55.8]} 17... h6 {[%clk 0:02:38.2]} 18. Rad1
{[%clk 0:02:56.7]} 18... Rad8 {[%clk 0:02:34.3]} 19. Bc4 {[%clk 0:02:41]} 19...
Rxd2 {[%clk 0:02:30.4]} 20. Rxd2 {[%clk 0:02:31.9]} 20... b5 {[%clk 0:02:32.3]}
21. Bb3 {[%clk 0:02:33.1]} 21... b4 {[%clk 0:02:23.1]} 22. Ne2 {[%clk
0:02:22.3]} 22... c5 {[%clk 0:02:22.9]} 23. Bd5 {[%clk 0:02:14.2]} 23... c4
{[%clk 0:02:23.8]} 24. Bxb7 {[%clk 0:02:12]} 24... Qxb7 {[%clk 0:02:25.7]} 25.
f3 {[%clk 0:02:07.4]} 25... Rc8 {[%clk 0:02:01.4]} 26. Rd6 {[%clk 0:02:02]}
26... Rc6 {[%clk 0:02:00.2]} 27. Rd8 {[%clk 0:01:52.9]} 27... Qc7 {[%clk
0:02:00.3]} 28. Qd2 {[%clk 0:01:47.3]} 28... a5 {[%clk 0:02:01.7]} 29. c3 {[%clk
0:01:41.7]} 29... Rb6 {[%clk 0:01:58.5]} 30. Kh2 {[%clk 0:01:40.2]} 30... Qb7
{[%clk 0:01:57.6]} 31. Ng3 {[%clk 0:01:32.2]} 31... bxc3 {[%clk 0:01:55.7]} 32.
bxc3 {[%clk 0:01:32.5]} 32... Qc6 {[%clk 0:01:53.3]} 33. Qd1 {[%clk 0:00:56.6]}
33... Rb3 {[%clk 0:01:50.4]} 34. Ne2 {[%clk 0:00:51.5]} 34... Rb2 {[%clk
0:01:49.6]} 35. Ng3 {[%clk 0:00:38.3]} 35... Qc5 {[%clk 0:01:50.1]} 36. Nh1
{[%clk 0:00:16.8]} 36... Qe3 {[%clk 0:01:45.7]} 37. Qd6 {[%clk 0:00:17.1]} 37...
Qf4+ {[%clk 0:01:11.8]} 38. Ng3 {[%clk 0:00:18.3]} 38... Nh5 {[%clk 0:01:13.1]}
39. Qf8+ {[%clk 0:00:17.9]} 39... Kf6 {[%clk 0:01:14.4]} 40. Qh8+ {[%clk
0:00:17.1]} 40... Kg5 {[%clk 0:01:13.6]} 0-1

[Event "*** Titled Tuesday Blitz"]
[Site "Chess.com"]
[Date "2018.09.04"]
[Round "4"]
[White "OglazaOskar2005"]
[Black "Winehouse83"]
[Result "0-1"]
[WhiteElo "2306"]
[BlackElo "2477"]
[TimeControl "180+2"]
[EndTime "14:26:05 PDT"]
[Termination "Winehouse83 won by resignation"]

1. e4 {[%clk 0:03:00.9]} 1... e5 {[%clk 0:03:00.7]} 2. Nf3 {[%clk 0:03:00.6]}
2... Nc6 {[%clk 0:03:01.8]} 3. d4 {[%clk 0:03:01.5]} 3... exd4 {[%clk
0:03:02.6]} 4. Nxd4 {[%clk 0:03:03.1]} 4... Nf6 {[%clk 0:03:04]} 5. Nxc6 {[%clk
0:03:02.6]} 5... bxc6 {[%clk 0:03:04.5]} 6. Qe2 {[%clk 0:03:03.9]} 6... d6
{[%clk 0:02:49.2]} 7. Nc3 {[%clk 0:02:59.1]} 7... Be7 {[%clk 0:02:47.8]} 8. Bf4
{[%clk 0:02:52.9]} 8... a5 {[%clk 0:02:41.5]} 9. O-O-O {[%clk 0:02:51.6]} 9...
O-O {[%clk 0:02:38.2]} 10. e5 {[%clk 0:02:44.2]} 10... Ne8 {[%clk 0:02:37.8]}
11. Qf3 {[%clk 0:02:34.2]} 11... Bg5 {[%clk 0:02:37.2]} 12. g3 {[%clk
0:02:30.5]} 12... d5 {[%clk 0:02:26.6]} 13. Bd3 {[%clk 0:02:12.7]} 13... a4
{[%clk 0:02:15]} 14. h4 {[%clk 0:02:01.6]} 14... Bxf4+ {[%clk 0:02:09.7]} 15.
Qxf4 {[%clk 0:02:02.5]} 15... a3 {[%clk 0:02:01.5]} 16. b3 {[%clk 0:02:02.1]}
16... Qe7 {[%clk 0:02:01.2]} 17. Rhe1 {[%clk 0:01:47.5]} 17... g6 {[%clk
0:01:56.3]} 18. h5 {[%clk 0:01:45.3]} 18... Ng7 {[%clk 0:01:56.8]} 19. Rh1
{[%clk 0:01:31.6]} 19... Ne6 {[%clk 0:01:56.8]} 20. Qd2 {[%clk 0:01:06]} 20...
Qg5 {[%clk 0:01:42.3]} 21. f4 {[%clk 0:01:06.8]} 21... Qxg3 {[%clk 0:01:39.3]}
22. Rdf1 {[%clk 0:01:08]} 22... Nc5 {[%clk 0:01:34]} 23. Rfg1 {[%clk 0:00:39.7]}
23... Nxd3+ {[%clk 0:01:24.1]} 24. cxd3 {[%clk 0:00:41.6]} 24... Qf3 {[%clk
0:01:25.1]} 25. Rf1 {[%clk 0:00:27.1]} 25... Qg3 {[%clk 0:01:15.4]} 26. f5
{[%clk 0:00:24.4]} 26... Bxf5 {[%clk 0:01:05.7]} 27. Rxf5 {[%clk 0:00:13.3]}
27... gxf5 {[%clk 0:01:06.5]} 28. Ne2 {[%clk 0:00:14.8]} 28... Qxe5 {[%clk
0:01:00.2]} 29. Rg1+ {[%clk 0:00:14.5]} 29... Kh8 {[%clk 0:01:01.2]} 30. d4
{[%clk 0:00:15.1]} 30... Qf6 {[%clk 0:01:00.3]} 31. Nf4 {[%clk 0:00:16.1]} 31...
Rg8 {[%clk 0:01:00.7]} 32. Rf1 {[%clk 0:00:17.5]} 32... Rae8 {[%clk 0:01:00.8]}
33. Qc2 {[%clk 0:00:17.6]} 33... Re4 {[%clk 0:00:59.5]} 34. Ne2 {[%clk
0:00:18.3]} 34... Rg2 {[%clk 0:00:57.2]} 35. Qc5 {[%clk 0:00:18.6]} 35... Rexe2
{[%clk 0:00:55.7]} 36. Qf8+ {[%clk 0:00:19.7]} 36... Rg8 {[%clk 0:00:56.7]} 0-1

[Event "*** Titled Tuesday Blitz"]
[Site "Chess.com"]
[Date "2018.09.04"]
[Round "4"]
[White "MikeSailer"]
[Black "LuisFSiles"]
[Result "1-0"]
[WhiteElo "2098"]
[BlackElo "2186"]
[TimeControl "180+2"]
[EndTime "14:26:07 PDT"]
[Termination "MikeSailer won by resignation"]

1. c4 {[%clk 0:03:01.8]} 1... Nf6 {[%clk 0:02:59.2]} 2. g3 {[%clk 0:03:02.4]}
2... g6 {[%clk 0:03:00]} 3. Bg2 {[%clk 0:03:03.7]} 3... Bg7 {[%clk 0:03:00.9]}
4. Nf3 {[%clk 0:03:05.2]} 4... O-O {[%clk 0:03:01.1]} 5. O-O {[%clk 0:03:06.8]}
5... d6 {[%clk 0:03:01.4]} 6. Nc3 {[%clk 0:03:08.5]} 6... Nc6 {[%clk 0:02:56.3]}
7. Rb1 {[%clk 0:03:10.1]} 7... a5 {[%clk 0:02:47.5]} 8. a3 {[%clk 0:03:11.1]}
8... Bf5 {[%clk 0:02:41.6]} 9. d3 {[%clk 0:03:11.5]} 9... Qd7 {[%clk 0:02:43.1]}
10. b4 {[%clk 0:03:11.8]} 10... axb4 {[%clk 0:02:43.4]} 11. axb4 {[%clk
0:03:12.9]} 11... Bh3 {[%clk 0:02:44.8]} 12. b5 {[%clk 0:03:14.3]} 12... Nd8
{[%clk 0:02:38.7]} 13. Bd2 {[%clk 0:03:02.7]} 13... Qf5 {[%clk 0:02:20.5]} 14.
Ra1 {[%clk 0:02:56.7]} 14... Rxa1 {[%clk 0:02:20.2]} 15. Qxa1 {[%clk 0:02:57.3]}
15... Qh5 {[%clk 0:02:21.7]} 16. Qa5 {[%clk 0:02:33.8]} 16... Ne6 {[%clk
0:01:36.4]} 17. Ne4 {[%clk 0:01:27.7]} 17... Ng4 {[%clk 0:01:24.6]} 18. Neg5
{[%clk 0:00:54.3]} 18... Nxg5 {[%clk 0:01:09.1]} 19. Bxg5 {[%clk 0:00:54.7]}
19... Bxg2 {[%clk 0:00:55]} 20. Kxg2 {[%clk 0:00:52.9]} 20... Ne5 {[%clk
0:00:34.3]} 21. Bxe7 {[%clk 0:00:43.1]} 21... Re8 {[%clk 0:00:34.8]} 22. Qxc7
{[%clk 0:00:42.7]} 22... Nxf3 {[%clk 0:00:19.3]} 23. exf3 {[%clk 0:00:43.5]}
23... Qe5 {[%clk 0:00:19.9]} 24. Bxd6 {[%clk 0:00:41.4]} 24... Qe2 {[%clk
0:00:21]} 25. Qxb7 {[%clk 0:00:29.5]} 25... Qxd3 {[%clk 0:00:20.4]} 26. Qd5
{[%clk 0:00:26.4]} 26... Bd4 {[%clk 0:00:20.7]} 27. Bc5 {[%clk 0:00:16.2]} 27...
Qc2 {[%clk 0:00:16.3]} 1-0

[Event "*** Titled Tuesday Blitz"]
[Site "Chess.com"]
[Date "2018.09.04"]
[Round "4"]
[White "tsakos2731"]
[Black "jeetjain"]
[Result "1-0"]
[WhiteElo "2488"]
[BlackElo "2310"]
[TimeControl "180+2"]
[EndTime "14:26:15 PDT"]
[Termination "tsakos2731 won by checkmate"]

1. d4 {[%clk 0:03:01.9]} 1... d5 {[%clk 0:02:59.7]} 2. c4 {[%clk 0:03:01.1]}
2... e6 {[%clk 0:02:59.3]} 3. Nc3 {[%clk 0:03:02.1]} 3... Be7 {[%clk 0:02:58.2]}
4. Nf3 {[%clk 0:03:01.5]} 4... Nf6 {[%clk 0:02:56.6]} 5. Bf4 {[%clk 0:03:02.6]}
5... O-O {[%clk 0:02:55.8]} 6. Rc1 {[%clk 0:03:03.3]} 6... b6 {[%clk 0:02:57.1]}
7. e3 {[%clk 0:03:03.4]} 7... Bb7 {[%clk 0:02:57.5]} 8. cxd5 {[%clk 0:03:03.1]}
8... Nxd5 {[%clk 0:02:57.9]} 9. Nxd5 {[%clk 0:03:03.6]} 9... Qxd5 {[%clk
0:02:59.8]} 10. a3 {[%clk 0:02:36.4]} 10... c5 {[%clk 0:02:57.1]} 11. dxc5
{[%clk 0:02:35]} 11... Bxc5 {[%clk 0:02:51.3]} 12. Qxd5 {[%clk 0:02:32.1]} 12...
Bxd5 {[%clk 0:02:50]} 13. b4 {[%clk 0:02:33.7]} 13... Be7 {[%clk 0:02:50.5]} 14.
Rc7 {[%clk 0:02:30.4]} 14... Bd8 {[%clk 0:02:42.8]} 15. Rc1 {[%clk 0:02:31.2]}
15... Nd7 {[%clk 0:02:40.3]} 16. Bb5 {[%clk 0:02:30.5]} 16... Nf6 {[%clk
0:02:37.3]} 17. Bd6 {[%clk 0:02:31.6]} 17... a6 {[%clk 0:02:28.5]} 18. Ba4
{[%clk 0:02:32.7]} 18... b5 {[%clk 0:02:24]} 19. Bxf8 {[%clk 0:02:33.1]} 19...
Kxf8 {[%clk 0:02:25.2]} 20. Bc2 {[%clk 0:02:32.1]} 20... a5 {[%clk 0:02:19.8]}
21. Bd3 {[%clk 0:02:31.6]} 21... axb4 {[%clk 0:02:19.2]} 22. axb4 {[%clk
0:02:33.5]} 22... Be7 {[%clk 0:02:19.2]} 23. O-O {[%clk 0:02:32.8]} 23... Rb8
{[%clk 0:02:15.9]} 24. Nd4 {[%clk 0:02:31.6]} 24... Bxb4 {[%clk 0:02:14.7]} 25.
Nxb5 {[%clk 0:02:32.8]} 25... g6 {[%clk 0:02:13.9]} 26. Rb1 {[%clk 0:02:31.7]}
26... Be7 {[%clk 0:02:02.6]} 27. Nc3 {[%clk 0:02:30.2]} 27... Rxb1 {[%clk
0:01:54.1]} 28. Rxb1 {[%clk 0:02:32.1]} 28... Bc6 {[%clk 0:01:54.5]} 29. Rb8+
{[%clk 0:02:27.4]} 29... Kg7 {[%clk 0:01:54.9]} 30. Rb6 {[%clk 0:02:28.6]} 30...
Ba8 {[%clk 0:01:54.3]} 31. Ra6 {[%clk 0:02:26.8]} 31... Bd5 {[%clk 0:01:49.6]}
32. e4 {[%clk 0:02:25.8]} 32... Bb3 {[%clk 0:01:42.5]} 33. Rb6 {[%clk
0:02:26.8]} 33... Nxe4 {[%clk 0:00:57.6]} 34. Bxe4 {[%clk 0:02:24.2]} 34... Bc4
{[%clk 0:00:57.3]} 35. Rc6 {[%clk 0:02:25.2]} 35... Bb3 {[%clk 0:00:57.6]} 36.
f4 {[%clk 0:02:26]} 36... Bf6 {[%clk 0:00:57.7]} 37. Kf2 {[%clk 0:02:24.8]}
37... Bd4+ {[%clk 0:00:57.9]} 38. Kg3 {[%clk 0:02:24.7]} 38... h5 {[%clk
0:00:58.2]} 39. Nb5 {[%clk 0:02:23.6]} 39... Bf6 {[%clk 0:00:57.7]} 40. Rb6
{[%clk 0:02:24.7]} 40... Ba4 {[%clk 0:00:56.1]} 41. Nd6 {[%clk 0:02:23.4]} 41...
Be7 {[%clk 0:00:55.4]} 42. Kf3 {[%clk 0:02:23.9]} 42... h4 {[%clk 0:00:54.6]}
43. g3 {[%clk 0:02:20.3]} 43... h3 {[%clk 0:00:52.5]} 44. g4 {[%clk 0:02:19.8]}
44... f5 {[%clk 0:00:50.2]} 45. gxf5 {[%clk 0:02:21.7]} 45... gxf5 {[%clk
0:00:49.9]} 46. Bxf5 {[%clk 0:02:17.8]} 46... Bh4 {[%clk 0:00:39]} 47. Bxe6
{[%clk 0:02:13.7]} 47... Bd1+ {[%clk 0:00:38.8]} 48. Ke3 {[%clk 0:02:12.7]}
48... Kf6 {[%clk 0:00:35.6]} 49. Nf5 {[%clk 0:02:11.7]} 49... Be1 {[%clk
0:00:33.1]} 50. Bd7+ {[%clk 0:02:10.4]} 50... Kf7 {[%clk 0:00:32.9]} 51. Rb1
{[%clk 0:02:10.7]} 51... Ba5 {[%clk 0:00:27.6]} 52. Rxd1 {[%clk 0:02:11.1]}
52... Bb6+ {[%clk 0:00:29.5]} 53. Kf3 {[%clk 0:02:12.1]} 53... Bd8 {[%clk
0:00:28.4]} 54. Kg4 {[%clk 0:02:12.8]} 54... Bb6 {[%clk 0:00:28.9]} 55. Bb5
{[%clk 0:02:13]} 55... Bc5 {[%clk 0:00:29.3]} 56. Bc4+ {[%clk 0:02:13.5]} 56...
Kf6 {[%clk 0:00:29.9]} 57. Rd5 {[%clk 0:02:13.7]} 57... Bb6 {[%clk 0:00:29.3]}
58. Rd6# {[%clk 0:02:14.8]} 1-0

[Event "*** Titled Tuesday Blitz"]
[Site "Chess.com"]
[Date "2018.09.04"]
[Round "4"]
[White "XDPS"]
[Black "VladDobrov"]
[Result "1-0"]
[WhiteElo "2604"]
[BlackElo "2697"]
[TimeControl "180+2"]
[EndTime "14:26:17 PDT"]
[Termination "XDPS won by resignation"]

1. d4 {[%clk 0:03:01.9]} 1... Nf6 {[%clk 0:03:00.4]} 2. Bf4 {[%clk 0:03:03.3]}
2... e6 {[%clk 0:03:01]} 3. e3 {[%clk 0:03:04.3]} 3... c5 {[%clk 0:03:02.2]} 4.
Nf3 {[%clk 0:03:04.8]} 4... Nc6 {[%clk 0:03:03.4]} 5. Nbd2 {[%clk 0:03:01.7]}
5... d5 {[%clk 0:03:00.8]} 6. c3 {[%clk 0:03:02.3]} 6... Bd6 {[%clk 0:03:01.2]}
7. Bg3 {[%clk 0:03:03.1]} 7... O-O {[%clk 0:03:00.5]} 8. Bd3 {[%clk 0:03:04]}
8... b6 {[%clk 0:03:01.4]} 9. e4 {[%clk 0:03:01.9]} 9... Be7 {[%clk 0:02:55.3]}
10. e5 {[%clk 0:03:01.9]} 10... Nh5 {[%clk 0:02:46.6]} 11. Ng5 {[%clk
0:02:53.7]} 11... Bxg5 {[%clk 0:02:40.9]} 12. Qxh5 {[%clk 0:02:53.4]} 12... g6
{[%clk 0:02:41.1]} 13. Qe2 {[%clk 0:02:53.7]} 13... cxd4 {[%clk 0:02:37.3]} 14.
Nf3 {[%clk 0:02:54.3]} 14... dxc3 {[%clk 0:02:37.9]} 15. bxc3 {[%clk 0:02:54.9]}
15... Be7 {[%clk 0:02:33.1]} 16. h4 {[%clk 0:02:54.5]} 16... h5 {[%clk
0:02:33.3]} 17. Bf4 {[%clk 0:02:33.9]} 17... Bb7 {[%clk 0:02:31]} 18. Rd1 {[%clk
0:02:31.9]} 18... Rc8 {[%clk 0:02:31.2]} 19. g4 {[%clk 0:02:22.6]} 19... hxg4
{[%clk 0:02:19.4]} 20. Ng5 {[%clk 0:02:22.6]} 20... d4 {[%clk 0:02:12.1]} 21.
Qxg4 {[%clk 0:02:13.3]} 21... Nxe5 {[%clk 0:01:38.7]} 22. Bxe5 {[%clk
0:02:12.9]} 22... Qd5 {[%clk 0:01:10.1]} 23. Qe4 {[%clk 0:00:54.6]} 23... Rxc3
{[%clk 0:00:39.7]} 24. Rg1 {[%clk 0:00:33.8]} 24... Rxd3 {[%clk 0:00:40.7]} 25.
Rxd3 {[%clk 0:00:28.9]} 25... Qxe4+ {[%clk 0:00:41.5]} 26. Nxe4 {[%clk
0:00:29.8]} 26... Bxe4 {[%clk 0:00:43.4]} 27. Rxd4 {[%clk 0:00:31.2]} 27... Bf5
{[%clk 0:00:38.4]} 28. Ke2 {[%clk 0:00:23.4]} 28... Rc8 {[%clk 0:00:36.6]} 29.
Rgd1 {[%clk 0:00:20.2]} 29... Rc2+ {[%clk 0:00:34.8]} 30. R1d2 {[%clk
0:00:21.4]} 30... Rxd2+ {[%clk 0:00:35.1]} 31. Kxd2 {[%clk 0:00:20.3]} 31... a5
{[%clk 0:00:34.4]} 32. Ke2 {[%clk 0:00:17.6]} 32... Bc5 {[%clk 0:00:32.3]} 33.
Rd8+ {[%clk 0:00:18.1]} 33... Bf8 {[%clk 0:00:30.1]} 34. Bd6 {[%clk 0:00:18.9]}
34... f6 {[%clk 0:00:29.3]} 35. Rxf8+ {[%clk 0:00:19]} 1-0

[Event "*** Titled Tuesday Blitz"]
[Site "Chess.com"]
[Date "2018.09.04"]
[Round "4"]
[White "julinha97"]
[Black "northridgehawk"]
[Result "0-1"]
[WhiteElo "2151"]
[BlackElo "2118"]
[TimeControl "180+2"]
[EndTime "14:26:22 PDT"]
[Termination "northridgehawk won by checkmate"]

1. e4 {[%clk 0:03:01.9]} 1... e5 {[%clk 0:03:00.7]} 2. Nf3 {[%clk 0:03:01.9]}
2... Nc6 {[%clk 0:03:01.9]} 3. Bb5 {[%clk 0:03:02.8]} 3... a6 {[%clk 0:03:03.3]}
4. Ba4 {[%clk 0:03:04]} 4... Nf6 {[%clk 0:03:04.9]} 5. O-O {[%clk 0:03:05.1]}
5... b5 {[%clk 0:03:06.4]} 6. Bb3 {[%clk 0:03:05.6]} 6... Bc5 {[%clk 0:03:08.3]}
7. d3 {[%clk 0:03:00.6]} 7... d6 {[%clk 0:03:09.7]} 8. c3 {[%clk 0:03:01.3]}
8... h6 {[%clk 0:03:07.9]} 9. a4 {[%clk 0:02:56.1]} 9... Rb8 {[%clk 0:03:08.1]}
10. Be3 {[%clk 0:02:45.7]} 10... Bb6 {[%clk 0:03:07.5]} 11. axb5 {[%clk
0:02:45.3]} 11... axb5 {[%clk 0:03:08.8]} 12. Bxb6 {[%clk 0:02:43]} 12... Rxb6
{[%clk 0:03:10.7]} 13. Nbd2 {[%clk 0:02:43.2]} 13... O-O {[%clk 0:03:11.2]} 14.
h3 {[%clk 0:02:43.5]} 14... Be6 {[%clk 0:03:12.3]} 15. Re1 {[%clk 0:02:43.4]}
15... Re8 {[%clk 0:03:10]} 16. Nf1 {[%clk 0:02:42.6]} 16... Bxb3 {[%clk
0:03:11.2]} 17. Qxb3 {[%clk 0:02:43.1]} 17... Ne7 {[%clk 0:03:10.7]} 18. Ng3
{[%clk 0:02:43]} 18... Ng6 {[%clk 0:03:11.7]} 19. Ra5 {[%clk 0:02:37.4]} 19...
Qd7 {[%clk 0:03:12]} 20. Rea1 {[%clk 0:02:21.7]} 20... Nf4 {[%clk 0:03:11.9]}
21. Qc2 {[%clk 0:02:21.2]} 21... c5 {[%clk 0:03:12.6]} 22. Nf5 {[%clk
0:02:16.2]} 22... Kh7 {[%clk 0:03:12.3]} 23. Ra7 {[%clk 0:02:12.8]} 23... Qe6
{[%clk 0:03:12.6]} 24. Kh2 {[%clk 0:02:00.8]} 24... g6 {[%clk 0:03:13.4]} 25.
Ne3 {[%clk 0:02:00.9]} 25... d5 {[%clk 0:03:09.6]} 26. Nd2 {[%clk 0:01:17.4]}
26... d4 {[%clk 0:02:57.9]} 27. cxd4 {[%clk 0:01:15]} 27... cxd4 {[%clk
0:02:53.6]} 28. Nef1 {[%clk 0:00:55.3]} 28... Rc6 {[%clk 0:02:54.4]} 29. Qb3
{[%clk 0:00:53.5]} 29... Kg7 {[%clk 0:02:22.8]} 30. R1a3 {[%clk 0:00:35]} 30...
Rec8 {[%clk 0:02:21.1]} 31. Qxe6 {[%clk 0:00:34.6]} 31... Nxe6 {[%clk
0:02:19.5]} 32. Rb3 {[%clk 0:00:34.3]} 32... Nc5 {[%clk 0:02:14.8]} 33. Rxb5
{[%clk 0:00:27.8]} 33... Nxd3 {[%clk 0:02:15.7]} 34. Rbb7 {[%clk 0:00:29.4]}
34... Rf8 {[%clk 0:02:15.6]} 35. f3 {[%clk 0:00:19.2]} 35... Nc5 {[%clk
0:02:07.9]} 36. Rc7 {[%clk 0:00:17.7]} 36... Rxc7 {[%clk 0:02:06.5]} 37. Rxc7
{[%clk 0:00:19.6]} 37... Ne6 {[%clk 0:02:06.2]} 38. Rb7 {[%clk 0:00:19.5]} 38...
Nc5 {[%clk 0:02:07.4]} 39. Rb5 {[%clk 0:00:19.5]} 39... Nd3 {[%clk 0:02:06.4]}
40. Ng3 {[%clk 0:00:16.8]} 40... Rc8 {[%clk 0:02:07.1]} 41. b3 {[%clk
0:00:17.1]} 41... Rc2 {[%clk 0:02:08.1]} 42. Nc4 {[%clk 0:00:18.1]} 42... Ne1
{[%clk 0:02:08.7]} 43. Nf1 {[%clk 0:00:13.3]} 43... Rxg2+ {[%clk 0:02:09]} 44.
Kh1 {[%clk 0:00:14.6]} 44... Rf2 {[%clk 0:02:09.6]} 45. Kg1 {[%clk 0:00:14.5]}
45... Rg2+ {[%clk 0:02:10.4]} 46. Kh1 {[%clk 0:00:15.9]} 46... Nh5 {[%clk
0:02:07.7]} 47. Nxe5 {[%clk 0:00:13]} 47... Nf4 {[%clk 0:02:08.8]} 48. Rb7
{[%clk 0:00:10.9]} 48... Kf6 {[%clk 0:02:04.9]} 49. Ng4+ {[%clk 0:00:10.5]}
49... Kg5 {[%clk 0:02:05.7]} 50. Rxf7 {[%clk 0:00:08.1]} 50... Nxf3 {[%clk
0:02:05.3]} 51. Rxf4 {[%clk 0:00:06.3]} 51... Rg1# {[%clk 0:02:05.6]} 0-1